bitfinex-derivatives/quotes_ETHF0:USTF0_20251107
["timestamp","ask_amount","ask_price","bid_price","bid_amount"]
[1762477031321,1.871677,3318.8,3318.7,0.48841]
[1762477031515,0.3571,3318.6,3318.1,3.2078]
[1762477031720,0.80057232,3318.5,3318.3,0.48846]
[1762477031926,0.80057232,3318.4,3318.1,3.2078]
[1762477032227,0.80057232,3318.3,3318.2,1.08948]
[1762477033032,1.28904232,3318.3,3318.2,1.08948]
[1762477033328,0.00280855,3318.5,3318.4,0.48845]
[1762477033522,0.80143016,3318.5,3318.4,0.48845]
[1762477033719,0.80143016,3318.5,3318.4,1.08945]
[1762477033935,1.42820468,3319.5,3319.4,0.4883]
[1762477034226,1.15588854,3319.5,3319.4,0.4883]
[1762477035025,1.15860491,3319.5,3319.4,0.4883]
[1762477036230,0.35981637,3319.5,3319.4,0.4883]
[1762477036731,0.00271637,3319.5,3319.4,1.0893]
[1762477037324,0.00271637,3319.5,3319.0,3.2078]
[1762477037325,0.4883,3319.4,3319.0,3.2078]
[1762477037528,0.00271637,3319.5,3319.0,3.2078]
[1762477038029,0.00271637,3319.5,3319.4,0.601]
[1762477038920,0.49101637,3319.5,3319.1,0.48835]
[1762477039127,0.49101637,3319.5,3319.0,3.398]
[1762477039320,0.49101637,3319.5,3319.2,0.48833]
[1762477039321,0.48831,3319.4,3319.2,0.48833]
[1762477039931,0.35981637,3319.5,3319.3,0.48831]
[1762477040233,0.84810637,3319.5,3319.0,3.2078]
[1762477040426,0.35981637,3319.5,3319.3,0.48831]
[1762477041929,0.00271637,3319.5,3319.4,3.8088]
[1762477042627,0.00271637,3319.5,3319.4,4.2971]
[1762477043021,0.48831,3319.4,3319.0,3.5662]
[1762477043228,0.48831,3319.4,3319.0,3.2078]
[1762477043834,0.35981637,3319.5,3319.4,0.4883]
[1762477044027,0.00271637,3319.5,3319.4,0.4883]
[1762477044430,0.49100637,3319.5,3319.4,0.4883]
[1762477044828,1.12255,3319.1,3319.0,3.2078]
[1762477045133,0.48842,3318.6,3318.5,3.69624]
[1762477046033,0.48837,3319.0,3318.5,3.5662]
[1762477046332,3.2078,3319.4,3318.5,3.2078]
[1762477046536,0.48842,3318.6,3318.5,3.2078]
[1762477046934,0.48839,3318.9,3318.5,3.2078]
[1762477047231,0.4884,3318.8,3318.7,0.48839]
[1762477047734,0.48841,3318.7,3318.6,0.48842]
[1762477047934,0.48839,3318.8,3318.7,0.48839]
[1762477048330,0.48839,3318.8,3318.7,0.48841]
[1762477048737,0.48836,3319.1,3319.0,0.48834]
[1762477049038,0.48836,3319.1,3319.0,1.08934]
[1762477049233,3.2078,3319.4,3318.5,3.5662]
[1762477049539,0.48836,3319.1,3319.0,1.08936]
[1762477050539,0.48833,3319.3,3319.2,0.48833]
[1762477053536,3.69611,3319.4,3319.3,1.08932]
[1762477053736,3.2078,3319.4,3319.3,1.08932]
[1762477054236,0.48832,3319.3,3319.2,0.48833]
[1762477054436,0.48835,3319.1,3319.0,0.48835]
[1762477054840,1.12254,3319.3,3319.2,0.48833]
[1762477055334,1.12254,3319.3,3318.5,3.5662]
[1762477055335,0.48836,3319.2,3319.1,0.48835]
[1762477055540,1.04386,3319.2,3319.1,0.48835]
[1762477056942,3.7633,3319.4,3319.3,0.48832]
[1762477057142,0.00271637,3319.5,3319.4,1.0396]
[1762477057343,0.48832,3319.4,3319.0,3.2078]
[1762477057538,0.48832,3319.4,3319.3,0.48831]
[1762477058337,0.39191637,3319.5,3319.4,0.4883]
[1762477058544,0.00271637,3319.5,3319.4,1.0362]
[1762477059442,0.88331637,3319.5,3319.4,0.4883]
[1762477060145,0.32581637,3319.5,3319.4,0.4883]
[1762477062045,0.81410637,3319.5,3319.4,0.4883]
[1762477062445,0.00271637,3319.5,3319.4,1.0362]
[1762477062641,0.00271637,3319.5,3319.4,4.244]
[1762477063142,0.81410637,3319.5,3319.4,4.244]
[1762477063740,0.00271637,3319.5,3319.4,4.244]
[1762477064847,0.00271637,3319.5,3319.4,3.6961]
[1762477065145,1.04585,3319.1,3319.0,3.2078]
[1762477065343,1.04585,3319.1,3319.0,3.69616]
[1762477065848,1.04585,3319.1,3319.0,0.48836]
[1762477066048,0.48838,3318.9,3318.8,0.48838]
[1762477066250,0.48838,3318.9,3318.5,3.5662]
[1762477066251,0.3231,3319.0,3318.5,3.5662]
[1762477066444,0.4884,3318.8,3318.5,3.5662]
[1762477066644,0.4884,3318.8,3318.5,3.2078]
[1762477067547,0.48841,3318.8,3318.7,0.48839]
[1762477067748,0.48838,3318.9,3318.8,0.48838]
[1762477068252,1.36898,3319.0,3318.9,0.48838]
[1762477068652,0.4884,3318.8,3318.7,0.48839]
[1762477068854,1.36898,3319.0,3318.9,0.48838]
[1762477069653,0.48838,3318.9,3318.8,0.48839]
[1762477069851,1.36897,3319.0,3318.9,0.48838]
[1762477070953,0.48838,3318.9,3318.5,3.2078]
[1762477071155,0.00271637,3319.5,3319.4,1.0362]
[1762477071352,0.00271637,3319.5,3319.4,3.7557]
[1762477071557,0.88331637,3319.5,3319.4,3.2078]
[1762477071852,0.32581637,3319.5,3319.4,0.4883]
[1762477072054,0.00271637,3319.5,3319.4,1.0362]
[1762477074453,0.48831,3319.4,3319.3,0.48832]
[1762477074655,0.32581637,3319.5,3319.4,0.4883]
[1762477075550,0.32581637,3319.5,3319.1,3.2078]
[1762477075748,0.88331637,3319.5,3319.4,0.4883]
[1762477076156,0.32581637,3319.5,3319.4,0.4883]
[1762477076353,0.00271637,3319.5,3319.4,1.0362]
[1762477083056,7.0748,3320.7,3320.3,0.48817]
[1762477083257,3.2078,3320.7,3319.7,9.25]
[1762477083458,1.04567,3320.3,3320.2,0.48817]
[1762477084063,1.04935619,3320.3,3320.2,0.48817]
[1762477084464,0.00368619,3320.3,3320.2,1.03607]
[1762477084662,0.49185619,3320.3,3320.2,1.03607]
[1762477085161,0.00368619,3320.3,3320.2,1.03607]
[1762477087966,0.49185619,3320.3,3320.2,1.03607]
[1762477088168,0.00368619,3320.3,3320.2,1.03607]
[1762477089765,3.2078,3321.2,3321.1,0.98525]
[1762477090469,3.69584,3321.2,3321.1,0.98525]
[1762477090765,3.21148688,3321.2,3321.1,0.98887742]
[1762477093361,0.00368688,3321.2,3321.1,0.98887742]
[1762477094162,0.00368688,3321.2,3321.1,10.20487742]
[1762477096566,0.004518,3321.5,3321.4,0.98521]
[1762477096972,0.004518,3321.5,3321.4,4.19301]
[1762477097663,0.00699157,3321.5,3321.4,4.19301]
[1762477098463,0.48788,3322.3,3322.2,0.48788]
[1762477098667,3.69566,3322.4,3322.3,0.98508]
[1762477099261,1.01609,3322.2,3322.1,0.4879]
[1762477099574,0.3462,3322.0,3321.8,0.004518]
[1762477099767,0.83412,3322.0,3321.9,0.48794]
[1762477100573,0.3462,3322.0,3321.9,0.48794]
[1762477100772,0.00220665,3322.2,3322.1,0.4972]
[1762477101072,0.49009665,3322.2,3322.1,0.98511]
[1762477101575,3.2078,3323.6,3322.5,0.2016]
[1762477101868,0.3462,3324.0,3323.5,0.674]
[1762477102060,0.8744,3323.5,3323.4,12.4158]
[1762477102572,0.00343047,3323.5,3323.4,12.41827197]
[1762477102761,0.00343047,3323.5,3323.4,12.91547197]
[1762477106272,3.69537,3324.4,3324.2,0.4876]
[1762477106972,3.2078,3324.4,3324.2,0.4876]
[1762477107272,1.36196,3324.5,3324.4,0.48757]
[1762477107460,1.36444612,3324.5,3324.4,0.48757]
[1762477107666,0.87688612,3324.5,3324.4,0.48757]
[1762477108472,0.00248612,3324.5,3324.4,0.98477]
[1762477108772,0.00248612,3324.5,3324.4,0.4972]
[1762477109167,0.5282,3324.2,3324.1,9.206]
[1762477109474,0.34868612,3324.5,3324.3,0.48758]
[1762477110564,0.83624612,3324.5,3324.4,0.48757]
[1762477110764,0.48757,3324.4,3324.3,0.48758]
[1762477110973,0.34868612,3324.5,3324.3,0.48758]
[1762477111160,0.83624612,3324.5,3324.4,0.48757]
[1762477111565,0.34868612,3324.5,3324.4,0.48757]
[1762477111873,0.34868612,3324.5,3324.4,0.98477]
[1762477111874,0.00248612,3324.5,3324.4,0.98477]
[1762477112076,0.49004612,3324.5,3324.4,0.98477]
[1762477113574,0.00248612,3324.5,3324.4,0.98477]
[1762477116881,3.2078,3325.2,3325.1,0.98627]
[1762477117178,0.3228,3325.5,3325.1,9.188]
[1762477117778,0.81330311,3325.5,3325.4,0.48742]
[1762477118375,0.00307311,3325.5,3325.4,0.98622]
[1762477120579,3.2078,3326.4,3326.1,0.48731]
[1762477120976,0.48729,3326.3,3326.2,0.48731]
[1762477121679,0.49039632,3326.3,3326.2,0.49103556]
[1762477121976,0.94569632,3326.3,3326.2,0.49103556]
[1762477123168,0.00310632,3326.3,3326.2,0.96973556]
[1762477124182,0.00310632,3326.3,3326.2,4.17753556]
[1762477124380,0.48717,3327.1,3326.9,0.4872]
[1762477124580,3.6631,3327.2,3327.1,0.48717]
[1762477125176,3.2078,3327.2,3327.1,0.96587]
[1762477125381,3.21066086,3327.2,3327.1,0.96587]
[1762477125580,0.48717,3327.1,3327.0,9.67119]
[1762477125883,3.21066086,3327.2,3327.1,0.4787]
[1762477126083,0.00286086,3327.2,3327.1,0.4787]
[1762477128288,0.4553,3326.9,3326.8,3.2078]
[1762477128583,0.7653,3327.0,3326.8,12.87601]
[1762477128783,0.2781,3327.0,3326.9,0.4787]
[1762477129180,0.2781,3327.0,3326.9,9.181]
[1762477129379,0.48718,3327.1,3326.9,9.6597]
[1762477129578,0.7334,3327.0,3326.9,9.181]
[1762477130283,0.7334,3327.0,3326.8,3.69501]
[1762477130284,0.7334,3327.0,3326.8,3.2078]
[1762477130483,0.4553,3326.8,3326.7,3.214]
[1762477130683,0.76529,3327.0,3326.7,3.6927]
[1762477130883,0.48721,3326.9,3326.8,0.4787]
[1762477131183,0.4553,3326.8,3326.7,3.214]
[1762477132185,3.6631,3326.8,3326.7,3.214]
[1762477135494,4.43589336,3326.8,3326.7,3.214]
[1762477135694,4.92311336,3326.8,3326.7,3.70123]
[1762477136194,4.15032,3326.8,3326.7,3.70123]
[1762477136392,4.92315457,3326.8,3326.7,3.70123]
[1762477136693,4.92315457,3326.8,3326.7,0.48723]
[1762477137686,0.48725,3326.6,3326.5,0.96595]
[1762477137886,0.94255,3326.6,3326.5,0.48725]
[1762477138087,0.94255,3326.6,3326.2,3.21152556]
[1762477138088,0.94259,3326.3,3326.2,0.00372556]
[1762477138287,1.71587516,3326.3,3326.2,0.00372556]
[1762477140192,1.58333262,3326.3,3326.2,0.96973556]
[1762477141095,2.03863262,3326.3,3326.2,0.00372556]
[1762477141296,1.71587516,3326.3,3326.2,0.00372556]
[1762477141690,1.71587516,3326.3,3326.2,0.49103556]
[1762477141889,1.59224318,3326.9,3326.2,0.49103556]
[1762477141890,8.72e-06,3327.4,3327.3,0.48715]
[1762477142194,0.2781,3328.0,3327.4,0.48713]
[1762477142395,0.2781,3328.0,3327.3,10.9948]
[1762477142396,0.2781,3328.0,3327.9,0.48706]
[1762477142692,0.23173196,3328.0,3327.9,3.69486]
[1762477142894,0.23466522,3328.0,3327.9,3.69486]
[1762477143281,3.69469,3329.1,3327.9,11.45157469]
[1762477143282,3.2078,3329.1,3327.9,11.45157469]
[1762477143597,0.4553,3328.9,3328.6,3.69475]
[1762477143890,0.4553,3328.9,3328.7,0.48693]
[1762477144192,0.76501,3329.0,3328.6,3.2078]
[1762477144493,0.48692,3328.9,3328.6,3.69706673]
[1762477145093,0.48693,3328.8,3328.6,3.69706673]
[1762477145595,0.2875,3328.0,3327.6,0.00451107]
[1762477145988,0.2875,3328.0,3327.8,0.48707]
[1762477146591,0.2875,3328.0,3327.8,0.00265918]
[1762477146792,0.4974,3327.9,3327.8,0.00265918]
[1762477146995,0.2875,3328.0,3327.8,0.00265918]
[1762477147196,0.77455,3328.0,3327.8,0.00265918]
[1762477148500,0.4974,3327.9,3327.8,0.00265918]
[1762477152601,0.4974,3327.7,3327.6,1.107e-05]
[1762477152800,3.7052,3327.7,3327.6,1.107e-05]
[1762477153398,4.19229,3327.7,3327.6,1.107e-05]
[1762477154001,4.19229,3327.7,3327.6,0.00387759]
[1762477154801,0.98456,3327.2,3327.1,9.66216]
[1762477155398,0.2875,3327.5,3327.2,0.48715]
[1762477155604,0.2875,3327.0,3326.6,3.2078]
[1762477155802,0.2875,3327.0,3326.6,3.21019976]
[1762477155998,1.27209,3327.0,3326.9,0.4872]
[1762477156504,0.48722,3326.9,3326.8,0.48722]
[1762477156806,0.98463,3326.7,3326.6,3.21019976]
[1762477157001,0.98463,3326.7,3326.6,3.69744976]
[1762477157200,0.98463,3326.7,3326.6,3.21019976]
[1762477158606,0.98463,3326.7,3326.6,0.00239976]
[1762477158794,0.2875,3326.0,3325.5,3.2078]
[1762477158997,0.48736,3325.9,3325.5,3.2078]
[1762477159199,0.77484,3326.0,3325.5,3.2078]
[1762477159499,0.48735,3325.9,3325.5,3.2078]
[1762477159694,0.00221236,3325.9,3325.7,0.48737]
[1762477160408,0.77469,3327.0,3325.6,2.12985861]
[1762477160609,0.4974,3326.4,3326.0,3.2078]
[1762477160801,0.4974,3326.4,3326.0,12.86814]
[1762477161100,0.2875,3326.5,3326.0,3.2078]
[1762477161306,0.48728,3326.4,3326.3,0.48729]
[1762477161502,0.48729,3326.3,3326.1,0.48731]
[1762477161902,0.2875,3326.0,3325.9,9.66035]
[1762477162310,0.2875,3326.0,3325.9,9.173]
[1762477163110,1.27224,3326.0,3325.9,9.66035]
[1762477163301,1.27224,3326.0,3325.9,9.173]
[1762477163907,0.2875,3326.0,3325.9,9.66035]
[1762477164707,1.27224,3326.0,3325.9,9.173]
[1762477165409,0.98479,3325.6,3325.5,0.00841089]
[1762477165612,0.4974,3325.6,3325.5,0.00841089]
[1762477165814,0.9848,3325.6,3325.5,0.00841089]
[1762477167099,3.2078,3325.7,3325.6,0.48739]
[1762477167303,0.2875,3326.0,3325.9,0.48735]
[1762477167912,0.77484,3326.0,3325.9,0.48735]
[1762477168412,0.48735,3325.9,3325.5,3.21621089]
[1762477168607,0.4974,3325.6,3325.5,0.00841089]
[1762477169207,0.4974,3325.9,3325.8,0.48737]
[1762477169407,0.4974,3325.9,3325.5,0.00841089]
[1762477169619,0.2875,3326.0,3325.5,0.00841089]
[1762477169808,0.48737,3325.8,3325.7,0.48737]
[1762477171315,0.48735,3325.9,3325.8,0.48736]
[1762477171515,0.98475,3325.9,3325.8,0.48736]
[1762477172008,0.4974,3325.9,3325.8,0.48736]
[1762477173518,0.98475,3325.9,3325.8,0.48737]
[1762477173714,0.48737,3325.8,3325.5,0.00841089]
[1762477174018,0.48737,3325.8,3325.7,0.48738]
[1762477175414,0.98476,3325.9,3325.8,0.48735]
[1762477175608,0.48737,3325.9,3325.8,0.48737]
[1762477175919,1.00518,3325.8,3325.7,0.48738]
[1762477176617,0.5178,3324.8,3324.7,2.12985861]
[1762477176915,0.48751,3324.8,3324.6,0.5215]
[1762477177618,0.5178,3324.7,3324.6,0.00219156]
[1762477179119,3.2078,3325.3,3325.1,0.5652]
[1762477179315,0.3177,3325.5,3325.1,1.05266]
[1762477179717,3.2078,3325.3,3325.1,1.05266]
[1762477180022,3.69524,3325.3,3325.1,0.5652]
[1762477180814,3.2078,3325.3,3325.2,0.5652]
[1762477181422,0.48745,3325.2,3325.0,0.82228]
[1762477182516,0.48745,3325.2,3325.1,0.5652]
[1762477183921,3.2078,3325.3,3325.2,0.48745]
[1762477184224,3.2078,3325.3,3325.2,0.5652]
[1762477184424,0.48745,3325.2,3325.0,0.3348]
[1762477184624,0.48745,3325.2,3325.0,0.82228]
[1762477185019,0.48745,3325.2,3325.1,0.5652]
[1762477186022,0.48748,3325.0,3324.6,2.61958017]
[1762477186218,0.48748,3325.0,3324.6,0.48972156]
[1762477186425,0.48751,3324.8,3324.6,2.13205017]
[1762477186621,0.48751,3324.8,3324.6,0.00219156]
[1762477186826,0.5233,3324.7,3324.6,0.00219156]
[1762477187225,3.6953,3324.9,3324.8,0.5652]
[1762477188228,4.2186,3324.9,3324.8,0.5652]
[1762477188429,0.48753,3324.7,3324.6,0.56739156]
[1762477188929,3.2078,3324.9,3324.8,0.5652]
[1762477189928,0.5233,3324.7,3324.6,0.00219156]
[1762477190428,3.69531,3324.9,3324.8,0.5652]
[1762477190834,0.48753,3324.7,3324.6,0.00219156]
[1762477191629,3.2078,3324.9,3324.8,0.5652]
[1762477192328,3.2078,3324.9,3324.8,1.05271]
[1762477192527,3.6953,3324.9,3324.8,1.05271]
[1762477192727,3.6953,3324.9,3324.8,0.5652]
[1762477193535,0.48753,3324.8,3324.7,0.48753]
[1762477193830,1.01083,3324.7,3324.6,0.00219156]
[1762477195432,3.2078,3324.9,3324.6,0.00219156]
[1762477195433,3.2078,3324.9,3324.6,1.05492156]
[1762477195738,0.48751,3324.8,3324.7,0.48752]
[1762477196534,0.5233,3324.8,3324.7,0.48752]
[1762477196933,3.2078,3324.9,3324.8,0.48751]
[1762477198038,3.7311,3324.9,3324.8,0.48751]
[1762477198238,1.01083,3324.8,3324.7,0.48752]
[1762477199843,0.5233,3324.8,3324.7,0.48752]
[1762477200346,3.2078,3325.3,3325.2,0.48745]
[1762477200649,3.2078,3326.1,3326.0,0.82213]
[1762477200835,0.3414,3326.0,3325.4,3.2078]
[1762477201036,0.48737,3325.8,3325.3,0.48744]
[1762477201236,0.48737,3325.8,3325.1,2.12985861]
[1762477201237,0.48744,3325.3,3325.1,0.48746]
[1762477201548,0.48744,3325.3,3325.0,5.67245861]
[1762477201549,0.48748,3325.0,3324.9,8.15]
[1762477201847,0.48748,3325.0,3324.6,0.00219156]
[1762477201848,1.01083,3324.7,3324.6,0.00219156]
[1762477202047,4.21863,3324.7,3324.6,0.00219156]
[1762477202742,4.21863,3324.7,3324.4,0.00451107]
[1762477202743,1.35006,3324.5,3324.4,0.00451107]
[1762477203043,1.01086,3324.5,3324.4,0.00451107]
[1762477203248,1.09676,3324.5,3324.4,0.00451107]
[1762477203747,1.09676,3324.5,3324.4,0.00715108]
[1762477204447,1.01086,3324.5,3324.4,0.00715108]
[1762477204842,1.28976,3324.5,3324.4,0.00715108]
[1762477205242,0.8022,3324.5,3324.4,0.00715108]
[1762477205848,0.5233,3324.5,3324.4,0.00715108]
[1762477206243,0.8022,3324.5,3324.4,0.00715108]
[1762477207850,0.4812,3323.9,3323.8,2.12985861]
[1762477208146,0.4812,3323.8,3323.7,0.48767]
[1762477208741,0.00451107,3324.8,3324.3,0.5028]
[1762477208947,0.49522914,3324.8,3324.6,0.48754]
[1762477209147,0.4812,3324.5,3324.3,0.00293254]
[1762477209446,0.4812,3324.4,3324.3,0.00293254]
[1762477209838,0.96877,3324.4,3324.3,0.00293254]
[1762477210843,0.00771914,3324.8,3324.4,0.5028]
[1762477211048,0.00771914,3324.8,3324.7,0.99033]
[1762477211248,0.97642914,3324.8,3324.7,0.48753]
[1762477211847,0.48891914,3324.8,3324.7,0.48753]
[1762477212749,0.97642914,3324.8,3324.7,0.48753]
[1762477213047,0.48891914,3324.8,3324.7,0.48753]
[1762477213646,0.00771914,3324.8,3324.7,0.48753]
[1762477214048,0.00771914,3324.8,3324.7,0.99033]
[1762477214253,0.00771914,3324.8,3324.7,0.5028]
[1762477214452,0.00771914,3324.8,3324.7,0.99033]
[1762477215255,0.00771914,3324.8,3324.6,2.15433516]
[1762477215552,0.48891914,3324.8,3324.7,0.48753]
[1762477216152,0.97642914,3324.8,3324.7,0.48753]
[1762477216452,0.4812,3324.4,3324.3,0.00293254]
[1762477216649,0.96877,3324.4,3324.3,0.00293254]
[1762477217149,0.4812,3323.9,3323.7,4.74435388]
[1762477217453,4.17666,3323.8,3323.7,0.48767]
[1762477217957,3.689,3323.8,3323.7,0.48767]
[1762477218252,0.4812,3324.2,3324.1,0.48761]
[1762477218653,0.96886,3323.8,3323.7,0.00276594]
[1762477218852,4.17666,3323.8,3323.7,0.00276594]
[1762477219254,4.17666,3323.8,3323.4,0.00451107]
[1762477219255,1.3064,3323.5,3323.4,0.00451107]
[1762477220156,0.48783,3322.6,3322.5,2.68335671]
[1762477220453,0.3375,3322.5,3322.1,0.4879]
[1762477220756,3.2078,3322.4,3322.2,0.48789]
[1762477220955,3.21068421,3322.4,3322.2,0.49024564]
[1762477224755,0.00288421,3322.4,3322.3,0.5028]
[1762477226561,3.2078,3324.0,3323.9,0.5028]
[1762477226763,3.2078,3324.4,3324.3,0.48758]
[1762477227154,3.2078,3324.4,3324.2,0.48759]
[1762477227459,3.21110637,3324.4,3324.2,0.48759]
[1762477227958,3.21110637,3324.4,3324.0,0.00451107]
[1762477227959,0.4812,3324.1,3324.0,0.00451107]
[1762477228463,3.21110637,3324.4,3324.3,0.48759]
[1762477228464,3.69230637,3324.4,3324.3,0.48759]
[1762477229053,0.4812,3324.1,3324.0,0.00451107]
[1762477229360,0.4812,3323.2,3322.9,2.14469115]
[1762477229565,0.4812,3323.0,3322.5,5.67259115]
[1762477229858,0.4812,3322.6,3322.5,0.48785]
[1762477230758,0.4812,3322.6,3322.2,0.00686671]
[1762477230949,3.2078,3322.8,3322.2,0.00686671]
[1762477230950,0.4812,3322.5,3322.4,0.48786]
[1762477231554,0.4812,3322.4,3322.3,0.48787]
[1762477231757,3.689,3322.4,3322.3,0.48787]
[1762477232163,3.2078,3322.8,3322.2,0.00686671]
[1762477232368,0.4812,3322.5,3322.4,0.48786]
[1762477233960,4.17681,3322.8,3322.7,0.48782]
[1762477234568,0.4812,3322.6,3322.2,0.00686671]
[1762477234859,3.2078,3322.4,3322.2,0.49475671]
[1762477235060,3.2078,3322.4,3322.3,0.4798]
[1762477236270,0.4779,3322.3,3322.2,0.00686671]
[1762477236469,0.4779,3322.3,3322.2,0.49475671]
[1762477237859,0.96578,3322.3,3322.2,0.00686671]
[1762477238472,0.4494,3321.5,3321.0,0.3201]
[1762477238665,3.2078,3321.7,3321.6,0.48798]
[1762477238970,3.6572,3321.7,3321.6,0.48798]
[1762477239574,3.6572,3321.7,3321.6,0.96582758]
[1762477239575,0.00245993,3321.7,3321.6,0.96582758]
[1762477239967,0.00245993,3321.7,3321.6,0.49102758]
[1762477240175,0.00245993,3321.7,3321.6,0.96582758]
[1762477241070,0.48785,3322.6,3322.5,0.48785]
[1762477241071,3.2078,3322.6,3322.5,0.48785]
[1762477241269,3.2078,3322.6,3322.5,1.24795]
[1762477241467,3.2078,3322.6,3322.5,0.48785]
[1762477241468,3.6572,3322.6,3322.5,0.48785]
[1762477241661,0.4494,3322.1,3322.0,3.2078]
[1762477241866,0.4494,3322.1,3322.0,0.48792]
[1762477242364,0.45303839,3322.1,3322.0,0.48792]
[1762477242560,0.00363839,3322.1,3322.0,4.45582]
[1762477242970,0.00363839,3322.1,3322.0,1.24802]
[1762477243173,0.00363839,3322.1,3322.0,0.96272]
[1762477243871,0.00363839,3322.1,3322.0,1.24802]
[1762477244073,0.00363839,3322.1,3322.0,12.45582]
[1762477244472,0.00363839,3322.1,3322.0,4.45582]
[1762477244979,0.00363839,3322.1,3322.0,3.69572]
[1762477245372,0.00363839,3322.1,3322.0,0.48792]
[1762477245676,0.00363839,3322.1,3321.7,9.173]
[1762477246676,0.45303839,3322.1,3322.0,0.48792]
[1762477248274,0.4494,3321.8,3321.7,9.66097]
[1762477249374,0.4494,3322.0,3321.9,0.48794]
[1762477250877,0.93732,3322.0,3321.9,0.48794]
[1762477251077,0.4494,3322.0,3321.9,0.48794]
[1762477251576,0.00363839,3322.1,3322.0,0.48792]
[1762477251879,0.00363839,3322.1,3322.0,1.24802]
[1762477253176,0.736,3322.0,3321.9,0.48794]
[1762477253379,0.48794,3321.9,3321.6,0.00304758]
[1762477253580,0.4494,3321.7,3321.6,0.49102758]
[1762477253775,0.93737,3321.7,3321.6,4.758e-05]
[1762477254083,0.2866,3322.0,3321.3,0.00303051]
[1762477254084,0.4494,3321.4,3321.3,0.00303051]
[1762477254885,3.6572,3321.4,3321.3,0.00653087]
[1762477255684,3.2078,3321.9,3321.3,0.00653087]
[1762477255885,3.2078,3321.9,3321.7,0.48797]
[1762477256386,0.4494,3321.8,3321.7,0.48797]
[1762477256685,0.4494,3321.8,3321.3,0.00653087]
[1762477257085,0.4494,3321.7,3321.6,0.48798]
[1762477257785,3.2078,3321.9,3321.8,0.48795]
[1762477258887,0.45303839,3322.1,3322.0,0.48792]
[1762477259883,0.4494,3322.0,3321.9,0.48792]
[1762477260086,0.93735,3321.9,3321.8,0.48794]
[1762477260477,0.49154839,3322.1,3322.0,0.48792]
[1762477260679,0.94094839,3322.1,3322.0,0.48792]
[1762477260881,0.9374,3321.5,3321.3,2.15122202]
[1762477261086,0.4494,3321.4,3321.3,0.00653087]
[1762477261284,4.14521,3321.4,3321.3,0.00653087]
[1762477262688,0.93751,3320.7,3320.3,4.82565525]
[1762477262986,3.6572,3320.4,3320.3,0.48817]
[1762477263182,3.6572,3320.4,3320.0,2.14469115]
[1762477263183,0.4494,3320.2,3320.1,2.14469115]
[1762477263375,0.4494,3320.2,3319.8,3.2078]
[1762477263376,0.4494,3320.0,3319.9,2.14469115]
[1762477263688,0.4494,3320.0,3319.8,0.48824]
[1762477263990,0.4494,3320.0,3319.8,0.49134898]
[1762477264281,0.4494,3319.9,3319.8,0.00310898]
[1762477265284,3.2078,3320.0,3319.8,0.49134898]
[1762477265786,0.4124,3319.9,3319.8,0.00310898]
[1762477266683,3.2078,3320.0,3319.9,0.48823]
[1762477266885,0.00451793,3320.2,3319.8,0.26620898]
[1762477267088,0.00451793,3320.2,3320.1,0.4882]
[1762477267287,3.2078,3320.8,3320.7,0.48811]
[1762477267488,0.2866,3321.5,3320.4,3.4554]
[1762477267687,0.48806,3321.1,3320.9,0.48808]
[1762477267983,0.90045,3321.2,3320.9,0.48807]
[1762477268187,0.4124,3321.0,3320.9,0.48807]
[1762477268486,0.49255793,3321.3,3321.1,0.48805]
[1762477269885,0.00451793,3321.3,3320.6,0.00451793]
[1762477270192,3.6202,3320.8,3320.6,0.49264793]
[1762477270790,3.69584,3321.2,3320.6,0.00451793]
[1762477271293,0.4124,3320.9,3320.8,0.48809]
[1762477271498,0.4881,3320.8,3320.6,0.00451793]
[1762477271785,0.4124,3320.7,3320.6,0.00451793]
[1762477272193,3.2078,3320.8,3320.7,0.48811]
[1762477273988,0.00451793,3321.3,3321.1,0.48804]
[1762477273989,3.2078,3321.2,3321.1,0.48804]
[1762477274192,3.2078,3321.2,3321.1,0.91034]
[1762477274584,0.00451793,3321.3,3321.2,0.91034]
[1762477277087,0.00451793,3321.3,3321.2,0.48804]
[1762477277291,0.41691793,3321.3,3321.2,0.48804]
[1762477277695,0.00451793,3321.3,3321.2,0.48804]
[1762477278595,0.00451793,3321.3,3321.2,0.91034]
[1762477280192,3.2078,3322.0,3321.9,0.4223]
[1762477280397,3.2078,3322.8,3322.3,0.4223]
[1762477280585,3.2078,3322.8,3322.2,0.2631]
[1762477280586,3.2078,3322.8,3322.7,0.91012]
[1762477281308,0.4124,3323.4,3323.3,0.48773]
[1762477281486,0.41602206,3323.4,3323.3,0.49064985]
[1762477282293,0.41602206,3323.4,3323.3,0.00291985]
[1762477282590,0.00362206,3323.4,3323.3,0.00291985]
[1762477282790,0.00451793,3323.7,3323.3,0.00291985]
[1762477282791,3.2078,3324.3,3324.2,0.48759]
[1762477282998,3.2078,3324.3,3324.0,0.48763]
[1762477283188,3.69539,3324.3,3324.0,0.48763]
[1762477283692,3.69539,3324.3,3324.1,0.48761]
[1762477283898,0.4876,3324.2,3324.0,0.48762]
[1762477284296,3.21153462,3324.3,3324.1,0.4876]
[1762477284797,3.69912462,3324.3,3324.1,0.4876]
[1762477285898,0.4876,3324.2,3323.9,0.00451793]
[1762477286394,3.21153462,3324.3,3324.1,0.48761]
[1762477286796,3.69912462,3324.3,3324.1,0.48761]
[1762477287292,0.48761,3324.2,3323.9,0.00451793]
[1762477288697,0.48761,3324.2,3324.0,0.48762]
[1762477288897,3.69912462,3324.3,3324.1,0.48761]
[1762477289599,0.48762,3324.1,3323.9,0.00451793]
[1762477290187,3.69912462,3324.3,3324.0,0.48763]
[1762477290392,3.69912462,3324.3,3324.1,0.48761]
[1762477290695,0.48761,3324.2,3323.9,0.00451793]
[1762477290891,3.21153462,3324.3,3324.2,0.4223]
[1762477291393,3.2078,3325.2,3324.5,0.2631]
[1762477291695,3.293,3326.3,3324.5,0.2631]